bitfinex-derivatives/quotes_BTCF0:USTF0_20241208
["timestamp","ask_amount","ask_price","bid_price","bid_amount"]
[1733635602320,0.03820503,99660.0,99659.0,0.0081523]
[1733635602526,0.03920503,99660.0,99659.0,0.0081523]
[1733635602932,0.03920503,99660.0,99650.0,0.00010799]
[1733635602933,0.035096,99651.0,99650.0,0.00010799]
[1733635603124,0.035096,99651.0,99650.0,0.00637956]
[1733635603125,0.48561316,99651.0,99650.0,0.00637956]
[1733635603533,0.395896,99651.0,99650.0,0.00637956]
[1733635603930,0.395896,99651.0,99641.0,0.01050233]
[1733635603931,0.035099,99643.0,99641.0,0.01]
[1733635604132,0.035099,99643.0,99622.0,0.3305325]
[1733635604133,0.035102,99633.0,99628.0,0.035104]
[1733635604430,0.035103,99630.0,99628.0,0.035104]
[1733635604835,0.1248576,99630.0,99629.0,0.1800195]
[1733635605034,0.1248576,99630.0,99628.0,0.035104]
[1733635605035,0.1248576,99630.0,99628.0,0.2151235]
[1733635605232,0.035103,99630.0,99628.0,0.2151235]
[1733635605637,0.0897546,99632.0,99628.0,0.1800195]
[1733635605846,0.00584,99642.0,99641.0,0.035099]
[1733635605847,0.005,99642.0,99641.0,0.035099]
[1733635606025,0.014,99651.0,99647.0,0.035097]
[1733635606026,0.08974458,99648.0,99647.0,0.035097]
[1733635606231,0.08974458,99648.0,99641.0,0.3608]
[1733635606232,0.08974458,99650.0,99649.0,0.035096]
[1733635606537,0.08974458,99652.0,99650.0,0.035096]
[1733635606736,0.08974458,99653.0,99650.0,0.035096]
[1733635607036,0.15477133,99653.0,99645.0,0.01]
[1733635607336,0.08977696,99648.0,99647.0,0.035097]
[1733635607534,0.08977696,99648.0,99644.0,0.00048334]
[1733635607535,0.035096,99652.0,99644.0,0.00048334]
[1733635607729,0.08977798,99649.0,99648.0,0.035097]
[1733635608131,0.005,99658.0,99645.0,0.00048363]
[1733635608132,0.035095,99653.0,99645.0,0.00048363]
[1733635608328,0.11967633,99655.0,99646.0,0.00048363]
[1733635608329,0.08978092,99650.0,99646.0,0.00048363]
[1733635608531,0.08978092,99650.0,99649.0,0.035096]
[1733635609140,0.035096,99651.0,99650.0,0.035096]
[1733635610636,0.037096,99651.0,99650.0,0.035096]
[1733635610841,0.037096,99651.0,99650.0,0.036096]
[1733635611652,0.15677233,99651.0,99650.0,0.036096]
[1733635611952,0.037096,99651.0,99650.0,0.04236743]
[1733635613040,0.037096,99651.0,99650.0,0.01228851]
[1733635613746,0.037096,99651.0,99650.0,0.00601708]
[1733635614246,0.037096,99651.0,99650.0,0.001]
[1733635614448,0.037096,99651.0,99650.0,0.00601746]
[1733635614955,0.037096,99651.0,99650.0,0.00915339]
[1733635616351,0.039096,99651.0,99650.0,0.00915339]
[1733635616855,0.039096,99651.0,99650.0,0.00815339]
[1733635617355,0.039096,99651.0,99650.0,0.00313593]
[1733635617653,0.004,99651.0,99650.0,0.00313613]
[1733635617844,0.039096,99651.0,99650.0,0.00815394]
[1733635619058,0.0351,99640.0,99639.0,0.01]
[1733635619353,0.3608,99643.0,99639.0,0.01442626]
[1733635619555,0.3608,99643.0,99640.0,0.01442626]
[1733635619757,0.035099,99642.0,99641.0,0.01442626]
[1733635620148,0.035099,99642.0,99641.0,0.01442617]
[1733635620655,0.12484744,99642.0,99641.0,0.01442617]
[1733635620844,0.04591846,99642.0,99641.0,0.01442617]
[1733635621046,0.04591846,99642.0,99641.0,0.01642617]
[1733635621249,0.04591846,99642.0,99641.0,0.01642634]
[1733635622456,0.16559938,99642.0,99641.0,0.01642642]
[1733635622653,0.04591846,99642.0,99641.0,0.01642642]
[1733635622849,0.40671846,99642.0,99641.0,0.01642642]
[1733635623555,0.40671846,99642.0,99641.0,0.01642654]
[1733635624656,0.04591846,99642.0,99641.0,0.01642654]
[1733635625152,0.16559938,99642.0,99641.0,0.01642654]
[1733635625555,0.04591846,99642.0,99641.0,0.01642654]
[1733635626259,0.16559938,99642.0,99641.0,0.01642654]
[1733635627448,0.04591846,99642.0,99641.0,0.01642654]
[1733635629162,0.04591846,99642.0,99641.0,0.01015413]
[1733635629362,0.04591846,99642.0,99641.0,0.01642664]
[1733635630364,0.04591846,99642.0,99641.0,0.01642629]
[1733635632563,0.19542954,99642.0,99641.0,0.01642629]
[1733635632964,0.04591846,99642.0,99641.0,0.01642629]
[1733635633654,0.04591846,99642.0,99641.0,0.01642631]
[1733635633655,0.19542954,99642.0,99641.0,0.01642631]
[1733635633857,0.09469668,99642.0,99641.0,0.01642631]
[1733635634462,0.04591846,99642.0,99641.0,0.01642631]
[1733635635366,0.09469682,99642.0,99641.0,0.01642631]
[1733635635567,0.09469682,99642.0,99641.0,0.010154]
[1733635635957,0.09469682,99642.0,99641.0,0.01642652]
[1733635636258,0.0946969,99642.0,99641.0,0.01642652]
[1733635636765,0.0946969,99642.0,99641.0,0.01642649]
[1733635637164,0.04591846,99642.0,99641.0,0.01642649]
[1733635637770,0.04591846,99642.0,99641.0,0.010154]
[1733635638068,0.09469943,99642.0,99641.0,0.010154]
[1733635640160,0.0947017,99642.0,99641.0,0.010154]
[1733635640371,0.0947017,99642.0,99641.0,0.01015481]
[1733635640664,0.0947017,99642.0,99641.0,0.01015482]
[1733635641172,0.04591846,99642.0,99641.0,0.01015482]
[1733635641463,0.27443405,99642.0,99641.0,0.01015482]
[1733635641659,0.0947017,99642.0,99641.0,0.01015482]
[1733635642061,0.27443405,99642.0,99641.0,0.01015482]
[1733635642260,0.27443405,99642.0,99641.0,0.01642781]
[1733635642468,0.0947017,99642.0,99641.0,0.01642781]
[1733635642769,0.0947017,99642.0,99641.0,0.01015482]
[1733635642956,0.09470121,99642.0,99641.0,0.01015482]
[1733635643156,0.27443356,99642.0,99641.0,0.01015482]
[1733635643864,0.27443356,99642.0,99641.0,0.01015488]
[1733635644169,0.45550121,99642.0,99641.0,0.01015488]
[1733635644360,0.63523356,99642.0,99641.0,0.01015488]
[1733635645363,0.56504032,99642.0,99641.0,0.01015488]
[1733635647071,0.56504032,99642.0,99641.0,0.01642792]
[1733635647270,0.56504032,99642.0,99641.0,0.01642799]
[1733635647668,0.20424032,99642.0,99641.0,0.01642799]
[1733635647869,0.20424032,99642.0,99641.0,0.01015495]
[1733635647870,0.81630121,99642.0,99641.0,0.01015495]
[1733635649466,0.92613585,99642.0,99641.0,0.01015495]
[1733635650770,0.92613585,99642.0,99641.0,0.01015512]
[1733635652373,0.81630277,99642.0,99641.0,0.01015512]
[1733635653169,0.81630277,99642.0,99629.0,0.0303]
[1733635653377,0.395903,99630.0,99629.0,0.0303]
[1733635653571,0.44468731,99630.0,99629.0,0.03657341]
[1733635654466,0.395903,99630.0,99629.0,0.03657341]
[1733635654971,0.4446898,99630.0,99629.0,0.03657341]
[1733635655171,0.4456898,99630.0,99629.0,0.04057341]
[1733635656375,0.4466898,99630.0,99629.0,0.04057341]
[1733635656676,0.4466898,99630.0,99629.0,0.01027341]
[1733635656677,0.44668992,99630.0,99629.0,0.01027341]
[1733635656970,0.44668992,99630.0,99629.0,0.004]
[1733635657175,0.44669198,99630.0,99629.0,0.004]
[1733635657779,0.62654543,99630.0,99629.0,0.004]
[1733635657972,0.63687983,99630.0,99629.0,0.004]
[1733635658569,0.63687983,99630.0,99615.0,0.01]
[1733635658570,0.035108,99616.0,99615.0,0.01]
[1733635658768,0.035108,99616.0,99597.0,9.7e-07]
[1733635658769,0.40958898,99616.0,99597.0,9.7e-07]
[1733635658976,0.035114,99598.0,99597.0,9.7e-07]
[1733635659476,0.035117,99591.0,99583.0,0.0305]
[1733635659665,0.395917,99591.0,99583.0,0.0305]
[1733635661373,0.51548742,99591.0,99583.0,0.0305]
[1733635661674,0.40628284,99591.0,99583.0,0.0305]
[1733635661878,0.40628284,99591.0,99584.0,0.0306]
[1733635662571,0.41528284,99591.0,99584.0,0.0306]
[1733635663271,0.41828284,99591.0,99584.0,0.0306]
[1733635665494,0.41828284,99591.0,99590.0,0.00420316]
[1733635667473,0.05748284,99591.0,99590.0,0.00420316]
[1733635667676,0.41828284,99591.0,99590.0,0.00420316]
[1733635667872,0.41828284,99591.0,99590.0,0.00106531]
[1733635668175,0.41828284,99591.0,99590.0,0.00420314]
[1733635669276,0.41828284,99591.0,99590.0,0.00608584]
[1733635669477,0.41828284,99591.0,99590.0,0.00922338]
[1733635671281,0.41828284,99591.0,99590.0,0.00420303]
[1733635678383,0.41828284,99591.0,99590.0,0.00922355]
[1733635678984,0.41828284,99591.0,99590.0,0.04434055]
[1733635679286,0.41828284,99591.0,99590.0,0.05061561]
[1733635680782,0.41828284,99591.0,99590.0,0.03618231]
[1733635680976,0.41828284,99591.0,99590.0,0.05061561]
[1733635683090,0.02236584,99591.0,99590.0,0.41141561]
[1733635683384,0.01,99594.0,99593.0,0.035116]
[1733635683586,0.01,99594.0,99593.0,0.04452802]
[1733635683785,0.01,99594.0,99593.0,0.04954777]
[1733635683985,0.01,99594.0,99593.0,0.05003117]
[1733635684291,0.01,99594.0,99593.0,0.04954777]
[1733635685384,0.013,99594.0,99593.0,0.04954777]
[1733635685585,0.10262204,99594.0,99593.0,0.04954777]
[1733635685885,0.13773804,99594.0,99593.0,0.04954777]
[1733635686080,0.057116,99594.0,99593.0,0.05054777]
[1733635686584,0.057116,99594.0,99593.0,0.036116]
[1733635686786,0.057116,99594.0,99593.0,0.05054781]
[1733635686978,0.048116,99594.0,99593.0,0.035116]
[1733635687179,0.045116,99594.0,99593.0,0.05354781]
[1733635687882,0.045116,99594.0,99593.0,0.05403183]
[1733635688191,0.045116,99594.0,99593.0,0.05354781]
[1733635688391,0.16460131,99594.0,99593.0,0.05354781]
[1733635689292,0.16460131,99594.0,99593.0,0.05454781]
[1733635689785,0.16460131,99594.0,99593.0,0.05254781]
[1733635689990,0.16460131,99594.0,99593.0,0.05454781]
[1733635690189,0.16460131,99594.0,99593.0,0.040116]
[1733635690489,0.16460131,99594.0,99593.0,0.05503198]
[1733635690490,0.13494196,99594.0,99593.0,0.05503198]
[1733635690680,0.13494196,99594.0,99593.0,0.05403198]
[1733635690885,0.045116,99594.0,99593.0,0.01643181]
[1733635691085,0.045116,99594.0,99593.0,0.01843181]
[1733635692494,0.045116,99594.0,99593.0,0.01643181]
[1733635692694,0.045116,99594.0,99593.0,0.01743181]
[1733635693085,0.045116,99594.0,99593.0,0.01643181]
[1733635693792,0.045116,99594.0,99593.0,0.05154781]
[1733635694195,0.045116,99594.0,99593.0,0.01643181]
[1733635696198,0.045116,99594.0,99593.0,0.01691604]
[1733635696797,0.16460131,99594.0,99593.0,0.01691604]
[1733635696990,0.16460131,99594.0,99593.0,0.01643181]
[1733635697302,0.16460131,99594.0,99593.0,0.01643261]
[1733635697303,0.045116,99594.0,99593.0,0.01643261]
[1733635697490,0.1947069,99594.0,99593.0,0.01643261]
[1733635698205,0.1947069,99594.0,99593.0,0.05203281]
[1733635698206,0.01,99594.0,99593.0,0.05203281]
[1733635698392,0.01,99594.0,99593.0,0.05154861]
[1733635698792,0.013,99594.0,99593.0,0.05154861]
[1733635699291,0.01,99594.0,99593.0,0.05154861]
[1733635699790,0.01,99594.0,99593.0,0.05054861]
[1733635700199,0.01,99594.0,99593.0,0.05054732]
[1733635700701,0.01,99594.0,99593.0,0.05254732]
[1733635701199,0.045116,99594.0,99593.0,0.01743132]
[1733635701394,0.045116,99594.0,99593.0,0.01543132]
[1733635701586,0.045116,99594.0,99593.0,0.01743132]
[1733635702099,0.1947069,99594.0,99593.0,0.01643132]
[1733635702593,0.046116,99594.0,99593.0,0.01643132]
[1733635703010,0.045116,99594.0,99593.0,0.01643132]
[1733635703192,0.046116,99594.0,99593.0,0.01643132]
[1733635703394,0.09491607,99594.0,99593.0,0.01643132]
[1733635703700,0.09491607,99594.0,99593.0,0.01643282]
[1733635703899,0.09491607,99594.0,99593.0,0.01443282]
[1733635704089,0.09491607,99594.0,99593.0,0.01543282]
[1733635704896,0.09491607,99594.0,99593.0,0.01443282]
[1733635705290,0.09791607,99594.0,99593.0,0.01443282]
[1733635705685,0.049116,99594.0,99593.0,0.01443282]
[1733635706900,0.049116,99594.0,99590.0,0.00106531]
[1733635706901,0.035117,99591.0,99590.0,0.00106531]
[1733635707096,0.035117,99591.0,99590.0,0.01549818]
[1733635708196,0.037117,99591.0,99590.0,0.01649818]
[1733635712894,0.08591998,99591.0,99590.0,0.01649818]
[1733635713506,0.08591998,99591.0,99590.0,0.01649911]
[1733635714999,0.18688588,99591.0,99590.0,0.01649911]
[1733635715403,0.037117,99591.0,99590.0,0.01649911]
[1733635716901,0.037117,99591.0,99590.0,0.01649924]
[1733635717308,0.037117,99591.0,99590.0,0.00206531]
[1733635717510,0.037117,99591.0,99590.0,0.01649924]
[1733635718409,0.05728155,99591.0,99590.0,0.01649924]
[1733635719708,0.10608523,99591.0,99590.0,0.01649924]
[1733635720298,0.10608517,99591.0,99590.0,0.01649914]
[1733635720497,0.10608517,99591.0,99590.0,1e-08]
[1733635720699,0.2159532,99591.0,99590.0,1e-08]
[1733635723798,0.035125,99570.0,99568.0,0.005]
[1733635724002,0.035125,99569.0,99566.0,0.035126]
[1733635724210,0.11965037,99568.0,99566.0,0.035126]
[1733635724413,0.15477537,99569.0,99566.0,0.035126]
[1733635724606,0.035125,99568.0,99566.0,0.035126]
[1733635725302,0.036125,99568.0,99566.0,0.043126]
[1733635726310,0.035125,99567.0,99566.0,0.043126]
[1733635726511,0.035125,99567.0,99566.0,0.045126]
[1733635727306,0.035125,99567.0,99566.0,0.044126]
[1733635727701,0.035125,99567.0,99566.0,0.037126]
[1733635727906,0.035125,99567.0,99566.0,0.039126]
[1733635728600,0.036125,99567.0,99566.0,0.04540249]
[1733635728801,0.036125,99567.0,99566.0,0.01027649]
[1733635729301,0.035125,99567.0,99566.0,0.01027649]
[1733635730511,0.035125,99567.0,99566.0,0.04540249]
[1733635730711,0.035125,99567.0,99566.0,0.05042368]
[1733635731307,0.01,99571.0,99570.0,0.035124]
[1733635731612,0.01,99571.0,99570.0,0.04642168]
[1733635732420,0.01,99571.0,99570.0,0.04842168]
[1733635732615,0.01,99571.0,99570.0,0.04942168]
[1733635733318,0.01,99571.0,99570.0,0.04789686]
[1733635733517,0.01,99571.0,99570.0,0.04989686]
[1733635733821,0.01,99571.0,99570.0,0.037124]
[1733635734116,0.01,99571.0,99570.0,0.04989585]
[1733635734321,0.01,99571.0,99570.0,0.04989588]
[1733635734711,0.01,99571.0,99570.0,0.0494206]
[1733635734913,0.01,99571.0,99570.0,0.0474206]
[1733635735119,0.01,99571.0,99570.0,0.0494206]
[1733635735712,0.045124,99571.0,99570.0,0.0494206]
[1733635735914,0.045124,99571.0,99570.0,0.05055867]
[1733635736109,0.045124,99571.0,99570.0,0.05255867]
[1733635736311,0.01,99571.0,99570.0,0.05255867]
[1733635737112,0.01,99571.0,99570.0,0.01743467]
[1733635737113,0.045124,99571.0,99570.0,0.01743467]
[1733635737311,0.035127,99563.0,99562.0,0.00047514]
[1733635737522,0.035128,99560.0,99544.0,0.035133]
[1733635737722,0.035128,99560.0,99541.0,0.3608]
[1733635737723,0.395931,99551.0,99541.0,0.3608]
[1733635738023,0.48563877,99551.0,99541.0,0.3608]
[1733635738221,0.48563877,99551.0,99531.0,0.0634]
[1733635738222,0.035137,99534.0,99533.0,0.3608]
[1733635738524,0.035137,99534.0,99533.0,0.3934455]
[1733635739316,0.035137,99534.0,99533.0,0.3608]
[1733635740013,0.01,99537.0,99536.0,0.035136]
[1733635740215,0.3608,99542.0,99541.0,0.035135]
[1733635740415,0.08970434,99547.0,99541.0,0.3608]
[1733635740718,0.005,99554.0,99553.0,0.03513]
[1733635740919,0.08970434,99559.0,99558.0,0.035129]
[1733635741124,0.08970434,99560.0,99558.0,0.035129]
[1733635741314,0.09859267,99563.0,99560.0,0.035128]
[1733635741315,0.08970434,99562.0,99560.0,0.035128]
[1733635741520,0.12483134,99563.0,99560.0,0.035128]
[1733635741822,0.08970434,99562.0,99560.0,0.035128]
[1733635742021,0.08970434,99564.0,99560.0,0.035128]
[1733635742219,0.08970434,99566.0,99560.0,0.035128]
[1733635742423,0.035125,99568.0,99560.0,0.035128]
[1733635742620,0.14470883,99568.0,99567.0,0.035125]
[1733635743120,0.3608,99569.0,99567.0,0.035125]
[1733635743923,0.08959939,99568.0,99567.0,0.035125]
[1733635744319,0.3608,99569.0,99567.0,0.035125]
[1733635744716,0.3608,99569.0,99567.0,0.036125]
[1733635744925,0.08961122,99568.0,99567.0,0.001]
[1733635745126,0.00012984,99570.0,99567.0,0.3618]
[1733635745127,0.08974106,99570.0,99567.0,0.3618]
[1733635745428,0.08974106,99570.0,99569.0,0.035125]
[1733635745429,0.00012984,99570.0,99569.0,0.035125]
[1733635745623,0.00012984,99570.0,99569.0,0.04140125]
[1733635746028,0.00012984,99570.0,99569.0,0.035125]
[1733635746234,0.00012984,99570.0,99569.0,0.04140127]
[1733635747423,0.00012984,99570.0,99569.0,0.04642238]
[1733635749429,0.00012984,99570.0,99569.0,0.04956056]
[1733635749832,0.00012984,99570.0,99569.0,0.05003367]
[1733635750522,0.00012984,99570.0,99569.0,0.05103367]
[1733635750718,0.00012984,99570.0,99569.0,0.05056056]
[1733635752729,0.00012984,99570.0,99569.0,0.05103393]
[1733635753033,0.00012984,99570.0,99569.0,0.05103318]
[1733635753830,0.00012984,99570.0,99569.0,0.05055982]
[1733635755129,0.00012984,99570.0,99569.0,0.05997412]
[1733635755735,0.00012984,99570.0,99569.0,0.07018307]
[1733635756733,0.00012984,99570.0,99569.0,0.11676121]
[1733635756933,0.00012984,99570.0,99569.0,0.11676116]
[1733635757125,0.00012984,99570.0,99569.0,0.10281806]
[1733635757321,0.00012984,99570.0,99569.0,0.10329128]
[1733635757525,0.00012984,99570.0,99569.0,0.10281806]
[1733635758433,0.00012984,99570.0,99569.0,0.10181806]
[1733635758634,0.00012984,99570.0,99569.0,0.10281806]
[1733635760428,0.00012984,99570.0,99569.0,0.11671767]
[1733635760625,8.4e-07,99570.0,99569.0,0.41671767]
[1733635760939,0.01076,99588.0,99569.0,0.41671767]
[1733635760940,0.01,99588.0,99581.0,0.03512]
[1733635761235,0.01,99594.0,99593.0,0.035116]
[1733635761432,0.11960882,99597.0,99593.0,0.01443482]
[1733635761737,0.11960882,99598.0,99597.0,0.035115]
[1733635762038,9.182e-05,99600.0,99599.0,0.035114]
[1733635762237,9.182e-05,99600.0,99599.0,0.04954882]
[1733635764028,0.00809182,99600.0,99599.0,0.05054882]
[1733635765435,0.01009182,99600.0,99599.0,0.05054882]
[1733635766330,0.01009182,99600.0,99599.0,0.04238817]
[1733635766635,0.01009182,99600.0,99599.0,0.08316991]
[1733635768141,0.01009182,99600.0,99599.0,0.08364195]
[1733635768334,0.01009182,99600.0,99599.0,0.08316991]
[1733635769628,0.01009182,99600.0,99599.0,0.06873932]
[1733635769933,0.01009182,99600.0,99599.0,0.08316894]
[1733635771047,0.01009182,99600.0,99599.0,0.44396894]
[1733635773535,0.01009182,99600.0,99599.0,0.4444407]
[1733635773735,0.01009182,99600.0,99599.0,0.44396894]
[1733635773935,8.2e-07,99600.0,99599.0,0.44396894]
[1733635775049,7.501e-05,99610.0,99609.0,0.035111]
[1733635775347,7.501e-05,99610.0,99609.0,0.41034062]
[1733635775543,7.501e-05,99610.0,99609.0,0.44296183]
[1733635776241,7.501e-05,99610.0,99609.0,0.41034062]
[1733635776441,0.00707501,99610.0,99609.0,0.44396167]
[1733635776842,0.00907501,99610.0,99609.0,0.44396167]
[1733635778057,0.00707501,99610.0,99609.0,0.44396167]
[1733635778939,0.00307501,99610.0,99609.0,0.44296167]
[1733635779740,0.00307501,99610.0,99609.0,0.43902059]
[1733635779949,0.00307501,99610.0,99609.0,0.45344915]
[1733635783149,0.00307501,99610.0,99609.0,0.4534476]
[1733635785145,1e-08,99610.0,99609.0,0.46286108]
[1733635785644,0.01,99622.0,99609.0,0.49797208]
[1733635785847,0.01,99630.0,99627.0,0.035104]
[1733635785848,0.01,99628.0,99627.0,0.035104]
[1733635786155,0.0311,99636.0,99635.0,0.035101]
[1733635786351,0.0311,99636.0,99635.0,0.04325627]
[1733635786744,0.0311,99636.0,99635.0,0.04952882]
[1733635787054,0.0311,99636.0,99635.0,0.04952786]
[1733635787244,0.04131289,99636.0,99635.0,0.04952786]
[1733635787652,0.05531289,99636.0,99635.0,0.05052786]
[1733635787848,0.10409304,99636.0,99635.0,0.05052786]
[1733635790046,0.10409304,99636.0,99635.0,0.05052788]
[1733635791859,0.07299304,99636.0,99635.0,0.05052788]
[1733635792958,0.07099304,99636.0,99635.0,0.05052788]
[1733635793151,0.06199304,99636.0,99635.0,0.04952788]
[1733635793453,0.06799304,99636.0,99635.0,0.0505278]
[1733635793659,0.06499304,99636.0,99635.0,0.0505278]
[1733635793960,0.06799304,99636.0,99635.0,0.0505278]
[1733635795847,0.01921289,99636.0,99635.0,0.0505278]
[1733635796453,0.06799203,99636.0,99635.0,0.0505278]
[1733635797244,0.06799203,99636.0,99635.0,0.05052758]
[1733635797853,0.01921289,99636.0,99635.0,0.05052758]
[1733635798257,0.16900723,99636.0,99635.0,0.05052758]
[1733635799460,0.16900723,99636.0,99635.0,0.0510002]
[1733635799461,0.16903275,99636.0,99635.0,0.0510002]
[1733635799756,0.01921289,99636.0,99635.0,0.0510002]
[1733635800156,0.01921289,99636.0,99635.0,0.05052758]
[1733635800462,0.10309255,99636.0,99635.0,0.05052744]
[1733635800859,0.10309255,99636.0,99635.0,0.0510001]
[1733635801162,0.10309255,99636.0,99635.0,0.05052744]
[1733635801457,0.10309255,99636.0,99635.0,0.0510001]
[1733635801764,0.10309255,99636.0,99635.0,0.05052744]
[1733635802755,0.10309255,99636.0,99635.0,0.0505279]
[1733635805054,0.10309411,99636.0,99635.0,0.0505279]
[1733635806649,0.10309411,99636.0,99635.0,0.05052809]
[1733635809757,0.28278963,99636.0,99635.0,0.05052809]
[1733635809955,0.10309411,99636.0,99635.0,0.05052809]
[1733635811365,0.05431389,99636.0,99635.0,0.05052809]
[1733635811876,0.22951812,99636.0,99635.0,0.05052809]
[1733635815959,0.22951812,99636.0,99635.0,0.036101]
[1733635816164,0.22951812,99636.0,99635.0,0.050528]
[1733635816365,0.22951812,99636.0,99635.0,0.05052802]
[1733635816775,0.22951812,99636.0,99635.0,0.04237362]
[1733635816971,0.22951812,99636.0,99635.0,0.036101]
[1733635817266,0.22951812,99636.0,99635.0,0.05052803]
[1733635818068,0.10309411,99636.0,99635.0,0.05052803]
[1733635819272,0.10309439,99636.0,99635.0,0.05052803]
[1733635819475,0.10309439,99636.0,99635.0,0.036101]
[1733635819668,0.10309439,99636.0,99635.0,0.05052798]
[1733635821369,0.05431389,99636.0,99635.0,0.05052798]
[1733635821573,0.10309436,99636.0,99635.0,0.05052798]
[1733635826384,0.10309436,99636.0,99635.0,0.05052803]
[1733635826674,0.10309436,99636.0,99635.0,0.05052804]
[1733635826876,0.10309436,99636.0,99635.0,0.05100136]
[1733635827277,0.10309436,99636.0,99635.0,0.05052804]
[1733635827483,0.22944253,99636.0,99635.0,0.05052804]
[1733635828978,0.05431389,99636.0,99635.0,0.05052804]
[1733635829173,0.10309458,99636.0,99635.0,0.05052804]
[1733635829582,0.2293877,99636.0,99635.0,0.036101]
[1733635829782,0.2293877,99636.0,99635.0,0.05052804]
[1733635831086,0.2293877,99636.0,99635.0,0.05100144]
[1733635832584,0.2293877,99636.0,99635.0,0.05052804]
[1733635833179,0.43900027,99636.0,99635.0,0.05052804]
[1733635834488,0.2293877,99636.0,99635.0,0.05100146]
[1733635834684,0.37584452,99636.0,99635.0,0.05100146]
[1733635834990,0.375958,99636.0,99635.0,0.05052804]
[1733635835182,0.2293877,99636.0,99635.0,0.05052804]
[1733635835378,0.37598934,99636.0,99635.0,0.05052804]
[1733635835580,0.2293877,99636.0,99635.0,0.05100146]
[1733635835888,0.43933967,99636.0,99635.0,0.05052804]
[1733635836582,0.43933967,99636.0,99635.0,0.05052823]
[1733635837175,0.2293877,99636.0,99635.0,0.05052823]
[1733635837377,0.43933612,99636.0,99635.0,0.05052823]
[1733635837883,0.2293877,99636.0,99635.0,0.05052823]
[1733635838585,0.22960066,99636.0,99635.0,0.05052823]
[1733635838986,0.22956066,99636.0,99635.0,0.05052823]
[1733635839985,0.22956066,99636.0,99635.0,0.0505277]
[1733635840180,0.10309346,99636.0,99635.0,0.0505277]
[1733635840784,0.06799246,99636.0,99635.0,0.0154267]
[1733635843391,0.06799246,99636.0,99635.0,0.01542668]
[1733635843603,0.06799238,99636.0,99635.0,0.01542668]
[1733635845094,0.06799238,99636.0,99635.0,0.02531349]
[1733635845598,0.06799238,99636.0,99635.0,0.02484016]
[1733635845986,0.06799238,99636.0,99635.0,0.02531349]
[1733635846598,0.06799238,99636.0,99635.0,0.02531363]
[1733635846996,0.06799238,99636.0,99635.0,0.01041348]
[1733635847292,0.06799238,99636.0,99635.0,0.02531363]
[1733635848183,0.1868296,99636.0,99635.0,0.02531363]
[1733635848692,0.01921289,99636.0,99635.0,0.02531363]
[1733635849496,0.18682245,99636.0,99635.0,0.02484032]
[1733635850095,0.18682245,99636.0,99635.0,0.01041348]
[1733635850395,0.18682245,99636.0,99635.0,0.02531369]
[1733635850600,0.18682245,99636.0,99635.0,0.02484034]
[1733635851095,0.06799297,99636.0,99635.0,0.02484034]
[1733635852199,0.19989681,99636.0,99635.0,0.02484034]
[1733635852990,0.06799297,99636.0,99635.0,0.02484034]
[1733635853187,0.35087657,99636.0,99635.0,0.01542686]
[1733635853394,0.52338152,99636.0,99635.0,0.00915431]
[1733635854102,0.88418152,99636.0,99635.0,0.00915431]
[1733635854291,0.88418152,99636.0,99635.0,0.00413627]
[1733635855286,0.71167657,99636.0,99635.0,0.00413627]
[1733635855801,0.74677757,99636.0,99635.0,0.03923727]
[1733635856098,0.59484122,99636.0,99635.0,0.04425581]
[1733635856587,0.42879297,99636.0,99635.0,0.04425581]
[1733635856792,0.42879297,99636.0,99635.0,0.05052844]
[1733635856993,0.42879297,99636.0,99635.0,0.036101]
[1733635857194,0.06799297,99636.0,99635.0,0.03923722]
[1733635857389,0.06799297,99636.0,99635.0,0.05052761]
[1733635857390,0.24753266,99636.0,99635.0,0.05052761]
[1733635857700,0.06799297,99636.0,99635.0,0.05052761]
[1733635858005,0.19875252,99636.0,99635.0,0.05052761]
[1733635858209,0.2475326,99636.0,99635.0,0.05052761]
[1733635858508,0.0679906,99636.0,99635.0,0.05052761]
[1733635860106,0.0679906,99636.0,99635.0,0.05994109]
[1733635861901,0.01921289,99636.0,99635.0,0.46588057]
[1733635862210,0.00012,99640.0,99636.0,0.035101]
[1733635862411,0.01031525,99640.0,99639.0,0.0351]
[1733635862594,0.00012,99640.0,99639.0,0.12486034]
[1733635862799,0.00012,99640.0,99639.0,0.11233898]
[1733635863512,0.15962054,99640.0,99639.0,0.11233898]
[1733635864009,0.01012,99640.0,99639.0,0.11233898]
[1733635864203,0.01012,99640.0,99639.0,0.12485376]
[1733635864601,0.01012,99640.0,99639.0,0.48565376]
[1733635864801,0.01012,99640.0,99639.0,0.47313898]
[1733635865004,0.00412,99640.0,99639.0,0.47413898]
[1733635865196,0.14950054,99642.0,99641.0,0.035099]
[1733635865396,0.01,99648.0,99647.0,0.035097]
[1733635865397,0.01005987,99648.0,99647.0,0.035097]
[1733635865612,0.14944123,99650.0,99648.0,0.035097]
[1733635865796,0.14944123,99652.0,99651.0,0.035096]
[1733635865998,0.14444123,99653.0,99649.0,0.0312]
[1733635866205,0.14444123,99653.0,99652.0,0.035095]
[1733635866409,0.14444123,99653.0,99652.0,0.04951753]
[1733635866605,0.0001118,99660.0,99658.0,0.035093]
[1733635866810,0.04876521,99659.0,99658.0,0.035093]
[1733635867009,0.17953963,99659.0,99658.0,0.04951547]
[1733635867208,0.22830484,99659.0,99658.0,0.04951547]
[1733635867398,0.04876521,99659.0,99658.0,0.04951547]
[1733635867604,0.04876521,99659.0,99658.0,0.00207429]
[1733635868107,0.0001118,99660.0,99658.0,0.00207429]
[1733635868412,0.0001118,99660.0,99657.0,0.00941348]
[1733635868413,0.04876521,99659.0,99657.0,0.00941348]
[1733635868602,0.04876521,99659.0,99658.0,0.002]
[1733635868798,0.04876521,99659.0,99658.0,0.037093]
[1733635869610,0.05476521,99659.0,99658.0,0.035093]
[1733635870211,0.006,99659.0,99658.0,0.036093]
[1733635872304,0.0001118,99660.0,99658.0,0.001]
[1733635872500,0.0001118,99660.0,99659.0,0.035093]
[1733635874209,0.0001118,99660.0,99659.0,0.037093]
[1733635875316,0.0001118,99660.0,99659.0,0.04650648]
[1733635875714,0.0001118,99660.0,99659.0,0.05277701]
[1733635876015,0.0001118,99660.0,99659.0,0.04650648]
[1733635876203,0.01009987,99662.0,99659.0,0.08538247]
[1733635876407,0.01,99674.0,99673.0,0.035088]
[1733635876603,0.035083,99688.0,99673.0,0.00626999]
[1733635876913,0.04875822,99687.0,99686.0,0.035083]
[1733635877107,0.5405568,99691.0,99678.0,0.06350179]
[1733635877108,0.08383833,99690.0,99678.0,0.06350179]
[1733635877307,0.2087092,99689.0,99685.0,0.035084]
[1733635877509,0.035082,99690.0,99680.0,0.00010411]